[Event "*** Titled Tuesday 3|2 Blitz"]
[Site "Chess.com"]
[Date "2015.07.07"]
[Round "4"]
[White "Penguininja"]
[Black "chessloveyou"]
[Result "1-0"]
[WhiteElo "2118"]
[BlackElo "1980"]
[TimeControl "180+2"]
[EndTime "11:49:56 PDT"]
[Termination "Penguininja won by resignation"]

1. d4 {[%clk 0:02:56]} 1... f5 {[%clk 0:02:59.4]} 2. Nf3 {[%clk 0:02:51.7]} 2...
Nf6 {[%clk 0:02:59.7]} 3. g3 {[%clk 0:02:52.3]} 3... b6 {[%clk 0:02:59.3]} 4.
Bg2 {[%clk 0:02:47.8]} 4... Bb7 {[%clk 0:02:59.7]} 5. O-O {[%clk 0:02:48.2]}
5... e6 {[%clk 0:03:00.6]} 6. c4 {[%clk 0:02:36.7]} 6... d5 {[%clk 0:02:46.4]}
7. Nbd2 {[%clk 0:02:26.9]} 7... Be7 {[%clk 0:02:43]} 8. b3 {[%clk 0:02:17.9]}
8... O-O {[%clk 0:02:41.6]} 9. Bb2 {[%clk 0:02:17.9]} 9... Qe8 {[%clk
0:02:31.2]} 10. Ne5 {[%clk 0:02:07.4]} 10... Nbd7 {[%clk 0:02:26]} 11. Nd3
{[%clk 0:01:55.4]} 11... Rd8 {[%clk 0:02:23.6]} 12. Nf4 {[%clk 0:01:44.7]} 12...
Bd6 {[%clk 0:02:20.7]} 13. Nf3 {[%clk 0:01:45.6]} 13... dxc4 {[%clk 0:02:13.2]}
14. bxc4 {[%clk 0:01:45.1]} 14... e5 {[%clk 0:01:59.3]} 15. dxe5 {[%clk
0:01:07.3]} 15... Nxe5 {[%clk 0:01:55.5]} 16. Nxe5 {[%clk 0:01:02.4]} 16... Bxe5
{[%clk 0:01:54.1]} 17. Qc2 {[%clk 0:00:59.1]} 17... Bxg2 {[%clk 0:01:49.4]} 18.
Nxg2 {[%clk 0:00:48.9]} 18... Bxb2 {[%clk 0:01:40.8]} 19. Qxb2 {[%clk
0:00:44.4]} 19... Ne4 {[%clk 0:01:42.4]} 20. Rad1 {[%clk 0:00:40]} 20... Qe6
{[%clk 0:01:33.6]} 21. Qc2 {[%clk 0:00:32.8]} 21... Qe5 {[%clk 0:01:24.5]} 22.
Nf4 {[%clk 0:00:29.4]} 22... Qc5 {[%clk 0:01:18.4]} 23. Ne6 {[%clk 0:00:21.3]}
23... Rxd1 {[%clk 0:01:10]} 24. Qxd1 {[%clk 0:00:20.7]} 24... Qxc4 {[%clk
0:01:00.7]} 25. Nxf8 {[%clk 0:00:20.9]} 25... Kxf8 {[%clk 0:01:02.3]} 26. Qd8+
{[%clk 0:00:21.6]} 26... Kf7 {[%clk 0:01:03.4]} 27. Rd1 {[%clk 0:00:20]} 27...
Nf6 {[%clk 0:01:00.2]} 28. Qd2 {[%clk 0:00:19.1]} 28... c5 {[%clk 0:00:56.2]}
29. Rc1 {[%clk 0:00:18.7]} 29... Qe6 {[%clk 0:00:55.3]} 30. Qc2 {[%clk
0:00:18.7]} 30... Qe7 {[%clk 0:00:37.3]} 31. Rd1 {[%clk 0:00:14.6]} 31... g6
{[%clk 0:00:36.7]} 32. Qc4+ {[%clk 0:00:15]} 32... Kg7 {[%clk 0:00:37.6]} 33.
Qd3 {[%clk 0:00:15.6]} 33... Kh6 {[%clk 0:00:35.8]} 34. Qd2+ {[%clk 0:00:15.1]}
34... Kg7 {[%clk 0:00:27.5]} 35. Kf1 {[%clk 0:00:15.1]} 35... h6 {[%clk
0:00:23.6]} 36. Qd3 {[%clk 0:00:11.1]} 36... Qe6 {[%clk 0:00:20.9]} 37. a3
{[%clk 0:00:11.5]} 37... Qc6 {[%clk 0:00:20.2]} 38. f3 {[%clk 0:00:10]} 38...
Qe8 {[%clk 0:00:20.4]} 39. Qc3 {[%clk 0:00:10.9]} 39... Kf7 {[%clk 0:00:20.8]}
40. Rd6 {[%clk 0:00:10.4]} 40... Qe7 {[%clk 0:00:21.2]} 41. Rd1 {[%clk
0:00:10.9]} 41... Qe6 {[%clk 0:00:21]} 42. Qd3 {[%clk 0:00:11.3]} 42... Kg7
{[%clk 0:00:21.2]} 43. Qc3 {[%clk 0:00:11.9]} 43... Kf7 {[%clk 0:00:21.9]} 44.
Qd2 {[%clk 0:00:11.4]} 44... Kg7 {[%clk 0:00:22.2]} 45. a4 {[%clk 0:00:12.8]}
45... Qe8 {[%clk 0:00:21.9]} 46. a5 {[%clk 0:00:13.8]} 46... b5 {[%clk
0:00:23.2]} 47. a6 {[%clk 0:00:13.6]} 47... b4 {[%clk 0:00:23.2]} 48. Qb2 {[%clk
0:00:14.2]} 48... Qb5 {[%clk 0:00:20.1]} 49. Rd6 {[%clk 0:00:14.4]} 49... c4
{[%clk 0:00:18.5]} 50. Qxf6+ {[%clk 0:00:15.1]} 1-0

[Event "*** Titled Tuesday 3|2 Blitz"]
[Site "Chess.com"]
[Date "2015.07.07"]
[Round "4"]
[White "ChessWarrior7197"]
[Black "newtie4"]
[Result "1-0"]
[WhiteElo "2318"]
[BlackElo "2449"]
[TimeControl "180+2"]
[EndTime "11:50:29 PDT"]
[Termination "ChessWarrior7197 won by resignation"]

1. e4 {[%clk 0:03:01.9]} 1... e5 {[%clk 0:02:58.2]} 2. Nf3 {[%clk 0:02:58.9]}
2... Nc6 {[%clk 0:02:58.7]} 3. Bb5 {[%clk 0:02:58.7]} 3... Nge7 {[%clk
0:02:57.2]} 4. O-O {[%clk 0:02:54.5]} 4... g6 {[%clk 0:02:57.3]} 5. d4 {[%clk
0:02:50.9]} 5... exd4 {[%clk 0:02:54.3]} 6. Nxd4 {[%clk 0:02:51.4]} 6... Bg7
{[%clk 0:02:55.5]} 7. Nxc6 {[%clk 0:02:51.2]} 7... bxc6 {[%clk 0:02:49.4]} 8.
Be2 {[%clk 0:02:50.7]} 8... O-O {[%clk 0:02:48.2]} 9. c3 {[%clk 0:02:50.6]} 9...
d5 {[%clk 0:02:49.2]} 10. Nd2 {[%clk 0:02:47.1]} 10... Rb8 {[%clk 0:02:47.7]}
11. Re1 {[%clk 0:02:38.5]} 11... Be6 {[%clk 0:02:47.1]} 12. exd5 {[%clk
0:02:36.6]} 12... cxd5 {[%clk 0:02:45.6]} 13. Nf3 {[%clk 0:02:37]} 13... c5
{[%clk 0:02:45.6]} 14. Qc2 {[%clk 0:02:31.4]} 14... Qc7 {[%clk 0:02:35.7]} 15.
Bg5 {[%clk 0:02:29.6]} 15... h6 {[%clk 0:02:32.4]} 16. Be3 {[%clk 0:02:14.9]}
16... Nf5 {[%clk 0:02:31.8]} 17. Bd2 {[%clk 0:02:15.8]} 17... Rfd8 {[%clk
0:02:24.4]} 18. Rad1 {[%clk 0:02:13.6]} 18... Qb6 {[%clk 0:02:09.5]} 19. Bc1
{[%clk 0:02:13.4]} 19... Rbc8 {[%clk 0:02:05.5]} 20. Bd3 {[%clk 0:02:08.2]}
20... a5 {[%clk 0:01:52.1]} 21. h4 {[%clk 0:02:04.2]} 21... c4 {[%clk
0:01:46.5]} 22. Bf1 {[%clk 0:02:01.9]} 22... d4 {[%clk 0:01:39]} 23. cxd4 {[%clk
0:01:59.1]} 23... Nxd4 {[%clk 0:01:37]} 24. Nxd4 {[%clk 0:01:59.4]} 24... Bxd4
{[%clk 0:01:37.7]} 25. Be3 {[%clk 0:01:50.5]} 25... Qxb2 {[%clk 0:01:26.8]} 26.
Rc1 {[%clk 0:01:34]} 26... Qxc2 {[%clk 0:01:21.7]} 27. Rxc2 {[%clk 0:01:34.3]}
27... Bxe3 {[%clk 0:01:15.1]} 28. Rxe3 {[%clk 0:01:34.6]} 28... Rd1 {[%clk
0:01:13.3]} 29. f3 {[%clk 0:01:32.4]} 29... Bf5 {[%clk 0:00:42.8]} 30. Rcc3
{[%clk 0:01:32.7]} 30... Rb8 {[%clk 0:00:31.9]} 31. Kf2 {[%clk 0:01:32]} 31...
Rb2+ {[%clk 0:00:32.6]} 32. Re2 {[%clk 0:01:30.4]} 32... Rdd2 {[%clk 0:00:32.7]}
33. Rxd2 {[%clk 0:01:28.4]} 33... Rxd2+ {[%clk 0:00:33.3]} 34. Kg3 {[%clk
0:01:29.5]} 34... Rxa2 {[%clk 0:00:34.2]} 35. Bxc4 {[%clk 0:01:30.7]} 35... Rb2
{[%clk 0:00:33.6]} 36. Bd5 {[%clk 0:01:31.2]} 36... Rb5 {[%clk 0:00:33.4]} 37.
Ba2 {[%clk 0:01:30.8]} 37... Rb7 {[%clk 0:00:32.5]} 38. Kf4 {[%clk 0:01:26.7]}
38... Kg7 {[%clk 0:00:29.6]} 39. g4 {[%clk 0:01:27.1]} 39... Bd7 {[%clk
0:00:25.4]} 40. Bd5 {[%clk 0:01:25.9]} 40... Ra7 {[%clk 0:00:23.3]} 41. Ke5
{[%clk 0:01:26]} 41... a4 {[%clk 0:00:24.1]} 42. Ra3 {[%clk 0:01:27]} 42... Bb5
{[%clk 0:00:25.1]} 43. Kd4 {[%clk 0:01:27.2]} 43... Ra6 {[%clk 0:00:25.4]} 44.
Kc5 {[%clk 0:01:26.1]} 44... Bd7 {[%clk 0:00:26.6]} 45. Bc4 {[%clk 0:01:25]}
45... Rc6+ {[%clk 0:00:26.7]} 46. Kd4 {[%clk 0:01:24.3]} 46... Rd6+ {[%clk
0:00:26.9]} 47. Kc5 {[%clk 0:01:23.8]} 47... Rd2 {[%clk 0:00:27.5]} 48. g5
{[%clk 0:00:50.3]} 48... hxg5 {[%clk 0:00:27.8]} 49. hxg5 {[%clk 0:00:51.2]}
49... Rg2 {[%clk 0:00:24]} 50. Kd6 {[%clk 0:00:51.9]} 50... Rd2+ {[%clk
0:00:24.5]} 51. Kc5 {[%clk 0:00:52.3]} 51... f6 {[%clk 0:00:21.7]} 52. gxf6+
{[%clk 0:00:51.2]} 52... Kxf6 {[%clk 0:00:23]} 53. Re3 {[%clk 0:00:51.3]} 53...
g5 {[%clk 0:00:21.5]} 54. Kb4 {[%clk 0:00:50.4]} 54... Rd4 {[%clk 0:00:22.5]}
55. Kc5 {[%clk 0:00:50.4]} 55... Rf4 {[%clk 0:00:23.7]} 56. Bd5 {[%clk
0:00:49.1]} 56... Rf5 {[%clk 0:00:19.7]} 57. Kd6 {[%clk 0:00:49.8]} 57... Bc8
{[%clk 0:00:20.8]} 58. Bc6 {[%clk 0:00:44.1]} 58... Rf4 {[%clk 0:00:16.5]} 59.
Ra3 {[%clk 0:00:41.2]} 59... Rd4+ {[%clk 0:00:14.2]} 60. Kc5 {[%clk 0:00:41.8]}
60... Ke5 {[%clk 0:00:15.3]} 61. Re3+ {[%clk 0:00:40.2]} 61... Kf4 {[%clk
0:00:15.7]} 62. Kxd4 {[%clk 0:00:41.1]} 1-0

[Event "*** Titled Tuesday 3|2 Blitz"]
[Site "Chess.com"]
[Date "2015.07.07"]
[Round "4"]
[White "MichiganEagle"]
[Black "Recombinant"]
[Result "1-0"]
[WhiteElo "2276"]
[BlackElo "2120"]
[TimeControl "180+2"]
[EndTime "11:50:40 PDT"]
[Termination "MichiganEagle won on time"]

1. d4 {[%clk 0:03:01.9]} 1... Nf6 {[%clk 0:02:59.4]} 2. Nf3 {[%clk 0:03:03.4]}
2... d5 {[%clk 0:02:58.6]} 3. c4 {[%clk 0:03:03.2]} 3... dxc4 {[%clk 0:02:58.5]}
4. Qa4+ {[%clk 0:03:03.5]} 4... Nbd7 {[%clk 0:02:54.6]} 5. Nc3 {[%clk
0:03:02.7]} 5... e6 {[%clk 0:02:52.4]} 6. e4 {[%clk 0:03:02.1]} 6... a6 {[%clk
0:02:53.1]} 7. Bxc4 {[%clk 0:03:01.3]} 7... c5 {[%clk 0:02:27.7]} 8. dxc5 {[%clk
0:02:49.4]} 8... Bxc5 {[%clk 0:02:25.9]} 9. Bg5 {[%clk 0:02:46.1]} 9... h6
{[%clk 0:01:45.8]} 10. Bh4 {[%clk 0:02:39]} 10... g5 {[%clk 0:01:43]} 11. Bg3
{[%clk 0:02:40.1]} 11... O-O {[%clk 0:01:43]} 12. e5 {[%clk 0:02:24.6]} 12...
Nh5 {[%clk 0:01:42.3]} 13. Qc2 {[%clk 0:02:22.5]} 13... b5 {[%clk 0:01:39.2]}
14. Bb3 {[%clk 0:02:13.2]} 14... Bb7 {[%clk 0:01:26.4]} 15. Rd1 {[%clk
0:02:05.5]} 15... Qe7 {[%clk 0:01:25.4]} 16. Ne4 {[%clk 0:02:01]} 16... Bb4+
{[%clk 0:01:21.6]} 17. Kf1 {[%clk 0:02:02]} 17... Rac8 {[%clk 0:01:15.1]} 18.
Qe2 {[%clk 0:01:59.2]} 18... Bxe4 {[%clk 0:01:08]} 19. Qxe4 {[%clk 0:02:01.1]}
19... Nc5 {[%clk 0:01:03.8]} 20. Qxb4 {[%clk 0:02:01.7]} 20... Rfd8 {[%clk
0:01:00.1]} 21. h4 {[%clk 0:01:16.3]} 21... Nxg3+ {[%clk 0:00:39.8]} 22. fxg3
{[%clk 0:01:16.6]} 22... Rxd1+ {[%clk 0:00:40.8]} 23. Bxd1 {[%clk 0:01:17.1]}
23... Qd7 {[%clk 0:00:40.2]} 24. Be2 {[%clk 0:01:16.5]} 24... Nd3 {[%clk
0:00:36.6]} 25. Bxd3 {[%clk 0:01:01.2]} 25... Rc1+ {[%clk 0:00:30]} 26. Ke2
{[%clk 0:01:02.3]} 26... Rxh1 {[%clk 0:00:27.7]} 27. Qe4 {[%clk 0:01:03]} 27...
gxh4 {[%clk 0:00:09.8]} 28. Qh7+ {[%clk 0:01:03.4]} 28... Kf8 {[%clk 0:00:11.1]}
29. Qxh6+ {[%clk 0:01:04.7]} 29... Ke8 {[%clk 0:00:11.5]} 30. Qh8+ {[%clk
0:01:02]} 30... Ke7 {[%clk 0:00:11.9]} 31. Qf6+ {[%clk 0:01:00.2]} 31... Ke8
{[%clk 0:00:12.8]} 32. Ng5 {[%clk 0:00:51.6]} 32... hxg3 {[%clk 0:00:04.3]} 33.
Ne4 {[%clk 0:00:50.2]} 33... Qc6 {[%clk 0:00:04.2]} 34. Nd6+ {[%clk 0:00:50.4]}
34... Kd7 {[%clk 0:00:04.4]} 35. Qxf7+ {[%clk 0:00:52]} 35... Kd8 {[%clk
0:00:05.4]} 36. Qf8+ {[%clk 0:00:43.2]} 36... Kc7 {[%clk 0:00:06.2]} 37. Be4
{[%clk 0:00:28.9]} 37... Re1+ {[%clk 0:00:05.8]} 38. Kxe1 {[%clk 0:00:28.5]}
38... Qc1+ {[%clk 0:00:07.3]} 39. Ke2 {[%clk 0:00:29.5]} 39... Qxb2+ {[%clk
0:00:08.4]} 40. Ke3 {[%clk 0:00:26.1]} 40... Qc3+ {[%clk 0:00:07.7]} 41. Bd3
{[%clk 0:00:26.1]} 41... Qxe5+ {[%clk 0:00:08.4]} 42. Ne4 {[%clk 0:00:26.8]}
42... Kb6 {[%clk 0:00:07.9]} 43. Qd8+ {[%clk 0:00:23.3]} 43... Kb7 {[%clk
0:00:07.7]} 44. Qd7+ {[%clk 0:00:23]} 44... Kb8 {[%clk 0:00:08]} 45. Qc6 {[%clk
0:00:21.1]} 45... Qh5 {[%clk 0:00:06.5]} 46. Qb6+ {[%clk 0:00:20.5]} 46... Kc8
{[%clk 0:00:06.9]} 47. Qxa6+ {[%clk 0:00:22.4]} 47... Kd8 {[%clk 0:00:08]} 48.
Qb6+ {[%clk 0:00:22.8]} 48... Ke7 {[%clk 0:00:08.2]} 49. Qc7+ {[%clk 0:00:23.3]}
49... Kf8 {[%clk 0:00:06.6]} 50. Qf4+ {[%clk 0:00:23.8]} 50... Ke7 {[%clk
0:00:06.8]} 51. Qxg3 {[%clk 0:00:24.6]} 51... Qd1 {[%clk 0:00:06.3]} 52. Qd6+
{[%clk 0:00:25.4]} 52... Kf7 {[%clk 0:00:05.7]} 53. Qd7+ {[%clk 0:00:23]} 53...
Kf8 {[%clk 0:00:05.5]} 54. Qxe6 {[%clk 0:00:22.5]} 54... Qc1+ {[%clk 0:00:05.6]}
55. Kd4 {[%clk 0:00:22]} 55... Qb2+ {[%clk 0:00:06]} 56. Kc5 {[%clk 0:00:21.5]}
56... Qa3+ {[%clk 0:00:06.1]} 57. Kb6 {[%clk 0:00:21.9]} 57... Qxd3 {[%clk
0:00:06.7]} 58. Qd6+ {[%clk 0:00:21.7]} 58... Qxd6+ {[%clk 0:00:06.6]} 59. Nxd6
{[%clk 0:00:23.6]} 59... b4 {[%clk 0:00:06.9]} 60. Kb5 {[%clk 0:00:24.8]} 60...
Ke7 {[%clk 0:00:08.8]} 61. Kxb4 {[%clk 0:00:24.2]} 61... Kxd6 {[%clk 0:00:08.9]}
62. a4 {[%clk 0:00:25.4]} 1-0

[Event "*** Titled Tuesday 3|2 Blitz"]
[Site "Chess.com"]
[Date "2015.07.07"]
[Round "4"]
[White "MinhGTrAn"]
[Black "VSERGUEI"]
[Result "1-0"]
[WhiteElo "2581"]
[BlackElo "2539"]
[TimeControl "180+2"]
[EndTime "11:50:50 PDT"]
[Termination "MinhGTrAn won by checkmate"]

1. d4 {[%clk 0:03:01.9]} 1... d5 {[%clk 0:03:00.4]} 2. c4 {[%clk 0:03:01.9]}
2... c6 {[%clk 0:03:01.2]} 3. Nc3 {[%clk 0:03:03.5]} 3... Nf6 {[%clk 0:03:01.1]}
4. cxd5 {[%clk 0:03:04.9]} 4... cxd5 {[%clk 0:03:01.4]} 5. Bf4 {[%clk
0:03:06.6]} 5... Nc6 {[%clk 0:03:00.9]} 6. e3 {[%clk 0:03:08.2]} 6... a6 {[%clk
0:03:01.6]} 7. Rc1 {[%clk 0:03:09.7]} 7... Bg4 {[%clk 0:03:02.2]} 8. f3 {[%clk
0:03:10.8]} 8... Bd7 {[%clk 0:03:02.6]} 9. g4 {[%clk 0:03:12.5]} 9... e6 {[%clk
0:03:02.5]} 10. Bd3 {[%clk 0:03:13]} 10... Qb6 {[%clk 0:03:02.5]} 11. Qd2 {[%clk
0:03:11.5]} 11... Rc8 {[%clk 0:02:59.8]} 12. h4 {[%clk 0:03:09.4]} 12... Be7
{[%clk 0:03:00.1]} 13. Nge2 {[%clk 0:03:05]} 13... Na5 {[%clk 0:02:59.9]} 14. b3
{[%clk 0:03:00.9]} 14... Ba3 {[%clk 0:02:59.9]} 15. Rc2 {[%clk 0:02:52.9]} 15...
Bb4 {[%clk 0:02:50.2]} 16. Kf2 {[%clk 0:02:41.1]} 16... Nc6 {[%clk 0:02:48.6]}
17. Qc1 {[%clk 0:02:32.4]} 17... Ne7 {[%clk 0:02:35.9]} 18. a3 {[%clk
0:02:22.3]} 18... Bxc3 {[%clk 0:02:26.8]} 19. Rxc3 {[%clk 0:02:23.4]} 19... Rxc3
{[%clk 0:02:26.8]} 20. Qxc3 {[%clk 0:02:25.3]} 20... O-O {[%clk 0:02:27.5]} 21.
h5 {[%clk 0:02:07.3]} 21... Rc8 {[%clk 0:02:27]} 22. Qb2 {[%clk 0:02:08.5]}
22... Bb5 {[%clk 0:02:26.7]} 23. Bxb5 {[%clk 0:02:00.3]} 23... Qxb5 {[%clk
0:02:26.9]} 24. h6 {[%clk 0:01:51.1]} 24... Ng6 {[%clk 0:02:20.1]} 25. hxg7
{[%clk 0:01:32.2]} 25... Qd3 {[%clk 0:02:16.1]} 26. Rc1 {[%clk 0:01:28.9]} 26...
Rxc1 {[%clk 0:02:15.5]} 27. Nxc1 {[%clk 0:01:27.9]} 27... Qd1 {[%clk 0:02:15.2]}
28. Bg3 {[%clk 0:01:15.2]} 28... h5 {[%clk 0:02:13.3]} 29. Be5 {[%clk 0:00:52]}
29... hxg4 {[%clk 0:02:09.4]} 30. Qe2 {[%clk 0:00:41.5]} 30... Qxe2+ {[%clk
0:01:28.1]} 31. Nxe2 {[%clk 0:00:40.5]} 31... Nxe5 {[%clk 0:01:27.6]} 32. dxe5
{[%clk 0:00:41]} 32... gxf3 {[%clk 0:01:28.4]} 33. exf6 {[%clk 0:00:39.2]} 33...
fxe2 {[%clk 0:01:21.8]} 34. Kxe2 {[%clk 0:00:41.1]} 34... Kh7 {[%clk 0:00:56]}
35. Kf3 {[%clk 0:00:41.8]} 35... Kg8 {[%clk 0:00:56.7]} 36. Kf4 {[%clk
0:00:43.3]} 36... Kh7 {[%clk 0:00:57.5]} 37. Ke5 {[%clk 0:00:44.9]} 37... Kg8
{[%clk 0:00:58.3]} 38. a4 {[%clk 0:00:45.2]} 38... a5 {[%clk 0:00:58.3]} 39. Kd6
{[%clk 0:00:43]} 39... Kh7 {[%clk 0:00:58.5]} 40. Kc5 {[%clk 0:00:33.4]} 40...
Kg8 {[%clk 0:00:52.1]} 41. Kb5 {[%clk 0:00:34.7]} 41... e5 {[%clk 0:00:48.5]}
42. Kc5 {[%clk 0:00:33.9]} 42... d4 {[%clk 0:00:49]} 43. exd4 {[%clk 0:00:35]}
43... e4 {[%clk 0:00:49.7]} 44. Kc4 {[%clk 0:00:36.6]} 44... b5+ {[%clk
0:00:49.1]} 45. axb5 {[%clk 0:00:37.5]} 45... a4 {[%clk 0:00:50.2]} 46. bxa4
{[%clk 0:00:38.8]} 46... Kh7 {[%clk 0:00:51.2]} 47. b6 {[%clk 0:00:39.5]} 47...
e3 {[%clk 0:00:52.3]} 48. Kd3 {[%clk 0:00:40.4]} 48... e2 {[%clk 0:00:53.6]} 49.
Kxe2 {[%clk 0:00:41.8]} 49... Kg6 {[%clk 0:00:54.2]} 50. g8=Q+ {[%clk
0:00:42.7]} 50... Kf5 {[%clk 0:00:55.2]} 51. b7 {[%clk 0:00:43.4]} 51... Ke4
{[%clk 0:00:56.1]} 52. b8=Q {[%clk 0:00:44.6]} 52... Kd5 {[%clk 0:00:56.9]} 53.
a5 {[%clk 0:00:44.4]} 53... Kc4 {[%clk 0:00:57.8]} 54. a6 {[%clk 0:00:44.8]}
54... Kc3 {[%clk 0:00:58.3]} 55. a7 {[%clk 0:00:45.5]} 55... Kc4 {[%clk
0:00:13]} 56. a8=Q {[%clk 0:00:44.9]} 56... Kc3 {[%clk 0:00:03.9]} 57. Qxf7
{[%clk 0:00:41.7]} 57... Kc2 {[%clk 0:00:02.8]} 58. Qfe8 {[%clk 0:00:33.1]}
58... Kc1 {[%clk 0:00:02.2]} 59. d5 {[%clk 0:00:34]} 59... Kc2 {[%clk
0:00:02.7]} 60. d6 {[%clk 0:00:34.1]} 60... Kc3 {[%clk 0:00:04]} 61. d7 {[%clk
0:00:34]} 61... Kc4 {[%clk 0:00:05.3]} 62. f7 {[%clk 0:00:32.2]} 62... Kc3
{[%clk 0:00:03.1]} 63. d8=Q {[%clk 0:00:31.2]} 63... Kc4 {[%clk 0:00:03.1]} 64.
f8=Q {[%clk 0:00:31.1]} 64... Kc3 {[%clk 0:00:04.3]} 65. Qc5# {[%clk 0:00:32.4]}
1-0

[Event "*** Titled Tuesday 3|2 Blitz"]
[Site "Chess.com"]
[Date "2015.07.07"]
[Round "4"]
[White "Viaje"]
[Black "alturas_pacificas"]
[Result "0-1"]
[WhiteElo "2226"]
[BlackElo "2066"]
[TimeControl "180+2"]
[EndTime "11:51:17 PDT"]
[Termination "alturas_pacificas won by checkmate"]

1. d4 {[%clk 0:03:01.9]} 1... d5 {[%clk 0:02:59.5]} 2. c4 {[%clk 0:03:03]} 2...
c6 {[%clk 0:03:00.4]} 3. Nf3 {[%clk 0:03:03.3]} 3... Nf6 {[%clk 0:03:01.4]} 4.
Nc3 {[%clk 0:03:04.8]} 4... e6 {[%clk 0:03:02.5]} 5. Bg5 {[%clk 0:03:05.5]} 5...
Nbd7 {[%clk 0:03:03.5]} 6. e3 {[%clk 0:03:05.6]} 6... Be7 {[%clk 0:02:59.4]} 7.
Bd3 {[%clk 0:03:05.1]} 7... dxc4 {[%clk 0:02:59.8]} 8. Bxc4 {[%clk 0:03:07]}
8... b5 {[%clk 0:03:00.8]} 9. Bd3 {[%clk 0:03:08]} 9... Bb7 {[%clk 0:03:02.3]}
10. O-O {[%clk 0:03:08.1]} 10... a6 {[%clk 0:03:03.7]} 11. a4 {[%clk 0:03:08.5]}
11... O-O {[%clk 0:03:02.6]} 12. Rc1 {[%clk 0:03:01.3]} 12... Qb6 {[%clk
0:03:02.6]} 13. Ne4 {[%clk 0:02:55.5]} 13... Rfe8 {[%clk 0:02:58.1]} 14. Qc2
{[%clk 0:02:51.3]} 14... h6 {[%clk 0:02:53.5]} 15. Bxf6 {[%clk 0:02:47.3]} 15...
Nxf6 {[%clk 0:02:53.8]} 16. Nxf6+ {[%clk 0:02:48]} 16... Bxf6 {[%clk 0:02:54.3]}
17. Ne5 {[%clk 0:02:44.6]} 17... Bxe5 {[%clk 0:02:54.3]} 18. dxe5 {[%clk
0:02:45.3]} 18... Rac8 {[%clk 0:02:44.8]} 19. Qc5 {[%clk 0:02:41.3]} 19... Qxc5
{[%clk 0:02:43]} 20. Rxc5 {[%clk 0:02:43.2]} 20... Red8 {[%clk 0:02:32.7]} 21.
Rd1 {[%clk 0:02:40.5]} 21... bxa4 {[%clk 0:02:31.2]} 22. Kf1 {[%clk 0:02:39.7]}
22... Rd5 {[%clk 0:02:24.2]} 23. Rxd5 {[%clk 0:02:24.2]} 23... cxd5 {[%clk
0:02:24.3]} 24. Ra1 {[%clk 0:02:20]} 24... Bc6 {[%clk 0:01:52.7]} 25. Bxa6
{[%clk 0:02:13.7]} 25... Rb8 {[%clk 0:01:52.6]} 26. Ra2 {[%clk 0:02:14.6]} 26...
Bb5+ {[%clk 0:01:43.3]} 27. Bxb5 {[%clk 0:02:14]} 27... Rxb5 {[%clk 0:01:45.2]}
28. Rxa4 {[%clk 0:02:12.9]} 28... Rxb2 {[%clk 0:01:45.8]} 29. f4 {[%clk
0:02:08.9]} 29... g6 {[%clk 0:01:43.8]} 30. h3 {[%clk 0:02:07.4]} 30... h5
{[%clk 0:01:44.7]} 31. Ra3 {[%clk 0:02:02.8]} 31... Kg7 {[%clk 0:01:44.7]} 32.
Kg1 {[%clk 0:02:03.7]} 32... h4 {[%clk 0:01:45.3]} 33. Kf1 {[%clk 0:01:59.9]}
33... Rd2 {[%clk 0:01:36.2]} 34. Ra7 {[%clk 0:01:59.8]} 34... d4 {[%clk
0:01:32.2]} 35. e4 {[%clk 0:01:57.3]} 35... d3 {[%clk 0:01:14.4]} 36. Rd7 {[%clk
0:01:57.9]} 36... Rd1+ {[%clk 0:00:58.7]} 37. Kf2 {[%clk 0:01:57.6]} 37... d2
{[%clk 0:00:46.1]} 38. Rd8 {[%clk 0:01:54.8]} 38... Kh7 {[%clk 0:00:27]} 39. Rd7
{[%clk 0:01:55.1]} 39... Kg7 {[%clk 0:00:24.6]} 40. Rd8 {[%clk 0:01:56.1]} 40...
Kh7 {[%clk 0:00:25.5]} 41. Rd6 {[%clk 0:01:57.1]} 41... Kg7 {[%clk 0:00:24.6]}
42. Rd3 {[%clk 0:01:56.9]} 42... Kh6 {[%clk 0:00:20.7]} 43. Rd4 {[%clk
0:01:55.8]} 43... Kg7 {[%clk 0:00:21]} 44. Rd6 {[%clk 0:01:55]} 44... Kg8 {[%clk
0:00:21.4]} 45. Rd8+ {[%clk 0:01:55.1]} 45... Kg7 {[%clk 0:00:22.7]} 46. Rd3
{[%clk 0:01:28]} 46... Kh6 {[%clk 0:00:22.9]} 47. Ke2 {[%clk 0:01:28.4]} 47...
Rg1 {[%clk 0:00:22.7]} 48. Kxd2 {[%clk 0:01:29.3]} 48... Rxg2+ {[%clk
0:00:23.7]} 49. Ke1 {[%clk 0:01:30.3]} 49... Ra2 {[%clk 0:00:22.6]} 50. Kf1
{[%clk 0:01:31.2]} 50... g5 {[%clk 0:00:22.5]} 51. f5 {[%clk 0:01:30.8]} 51...
Ra4 {[%clk 0:00:18.8]} 52. Re3 {[%clk 0:01:30]} 52... Kh5 {[%clk 0:00:16.6]} 53.
Kf2 {[%clk 0:01:29.5]} 53... g4 {[%clk 0:00:17.4]} 54. hxg4+ {[%clk 0:01:29.1]}
54... Kxg4 {[%clk 0:00:19.3]} 55. fxe6 {[%clk 0:01:01.7]} 55... fxe6 {[%clk
0:00:19.6]} 56. Kg2 {[%clk 0:00:52]} 56... Ra2+ {[%clk 0:00:19.8]} 57. Kg1
{[%clk 0:00:52.9]} 57... h3 {[%clk 0:00:20.1]} 58. Rb3 {[%clk 0:00:51.2]} 58...
Re2 {[%clk 0:00:18.7]} 59. Rb6 {[%clk 0:00:49.2]} 59... Kg3 {[%clk 0:00:16]} 60.
Rb3+ {[%clk 0:00:49.9]} 60... Kf4 {[%clk 0:00:15.5]} 61. Rxh3 {[%clk 0:00:50.6]}
61... Rxe4 {[%clk 0:00:16.4]} 62. Kf2 {[%clk 0:00:49]} 62... Kxe5 {[%clk
0:00:16.4]} 63. Rd3 {[%clk 0:00:46.7]} 63... Rd4 {[%clk 0:00:11.7]} 64. Re3+
{[%clk 0:00:43.7]} 64... Kf5 {[%clk 0:00:11]} 65. Ke2 {[%clk 0:00:39.3]} 65...
Re4 {[%clk 0:00:10.8]} 66. Kf3 {[%clk 0:00:40.2]} 66... Rxe3+ {[%clk 0:00:11.7]}
67. Kxe3 {[%clk 0:00:42.1]} 67... Ke5 {[%clk 0:00:13.3]} 68. Kd3 {[%clk
0:00:38.3]} 68... Kf4 {[%clk 0:00:12.4]} 69. Ke2 {[%clk 0:00:39.5]} 69... Ke4
{[%clk 0:00:13.1]} 70. Kf2 {[%clk 0:00:40.6]} 70... Kd3 {[%clk 0:00:13.6]} 71.
Kf1 {[%clk 0:00:41.2]} 71... e5 {[%clk 0:00:14.2]} 72. Ke1 {[%clk 0:00:42.2]}
72... Ke3 {[%clk 0:00:14.1]} 73. Kd1 {[%clk 0:00:43.4]} 73... Kf2 {[%clk
0:00:14.7]} 74. Kd2 {[%clk 0:00:44.4]} 74... e4 {[%clk 0:00:15.9]} 75. Kc3
{[%clk 0:00:45.4]} 75... e3 {[%clk 0:00:17.8]} 76. Kd4 {[%clk 0:00:46.9]} 76...
e2 {[%clk 0:00:19.7]} 77. Ke5 {[%clk 0:00:48.4]} 77... e1=Q+ {[%clk 0:00:21.6]}
78. Kf6 {[%clk 0:00:50.1]} 78... Kf3 {[%clk 0:00:22.7]} 79. Kg7 {[%clk 0:00:52]}
79... Kf4 {[%clk 0:00:23.9]} 80. Kf7 {[%clk 0:00:53.9]} 80... Kf5 {[%clk
0:00:25]} 81. Kg7 {[%clk 0:00:55.8]} 81... Qe6 {[%clk 0:00:25.7]} 82. Kf8 {[%clk
0:00:56.8]} 82... Qd7 {[%clk 0:00:25.8]} 83. Kg8 {[%clk 0:00:57.7]} 83... Kg6
{[%clk 0:00:26.8]} 84. Kh8 {[%clk 0:00:59.6]} 84... Qd8# {[%clk 0:00:27.6]} 0-1